fUSD/lending_fUSD_20240318
["ID","MTS","AMOUNT","RATE_DAILY","PERIOD"]
[319454533,1710781858738,-2653.3,0.00021999,2]
[319454534,1710781858747,-2653.3,0.00021999,2]
[319454535,1710781858756,-2653.3,0.00021999,2]
[319454536,1710781858766,-2653.3,0.00021999,2]
[319454537,1710781858775,-2653.3,0.00021999,2]
[319454538,1710781858784,-1002.75616565,0.00021999,20]
[319454539,1710781858794,-2653.3,0.00021999,2]
[319454540,1710781858804,-2653.3,0.00021999,2]
[319454541,1710781858814,-2653.3,0.00021999,2]
[319454542,1710781858823,-2653.3,0.00021999,2]
[319454543,1710781858832,-2653.3,0.00021999,2]
[319454544,1710781858841,-2653.3,0.00021999,2]
[319454545,1710781858852,-500.0,0.00021999,2]
[319454546,1710781858862,-2653.3,0.00021999,2]
[319454547,1710781858871,-500.0,0.00021999,2]
[319454548,1710781858880,-500.0,0.00021999,2]
[319454549,1710781858890,-500.0,0.00021999,2]
[319454550,1710781858899,-500.0,0.00021999,2]
[319454551,1710781858909,-500.0,0.00021999,2]
[319454552,1710781858918,-500.0,0.00021999,2]
[319454553,1710781858927,-500.0,0.00021999,2]
[319454554,1710781858937,-500.0,0.00021999,2]
[319454555,1710781858946,-500.0,0.00021999,2]
[319454556,1710781858955,-500.0,0.00021999,2]
[319454557,1710781858964,-500.0,0.00021999,2]
[319454558,1710781858974,-500.0,0.00021999,2]
[319454559,1710781858983,-500.0,0.00021999,2]
[319454560,1710781858992,-500.0,0.00021999,2]
[319454561,1710781859001,-500.0,0.00021999,2]
[319454562,1710781859010,-500.0,0.00021999,2]
[319454563,1710781859019,-500.0,0.00021999,2]
[319454564,1710781859028,-500.0,0.00021999,2]
[319454565,1710781859038,-2082.55,0.00021999,2]
[319454566,1710781859047,-319.41890102,0.00021999,2]
[319454567,1710781859058,-500.0,0.00021999,2]
[319454568,1710781859068,-2650.89,0.00021999,2]
[319454569,1710781859077,-500.0,0.00021999,2]
[319454570,1710781859086,-500.0,0.00021999,2]
[319454571,1710781859095,-500.0,0.00021999,2]
[319454572,1710781859107,-664.81,0.00021999,2]
[319454573,1710781859116,-500.0,0.00021999,2]
[319454574,1710781859126,-500.0,0.00021999,2]
[319454575,1710781859135,-2220.18,0.00021999,2]
[319454576,1710781859144,-500.0,0.00021999,2]
[319454577,1710781859153,-500.0,0.00021999,2]
[319454578,1710781859163,-500.0,0.00021999,2]
[319454579,1710781859173,-500.0,0.00021999,2]
[319454580,1710781859182,-548.99,0.00021999,2]
[319454581,1710781859191,-500.0,0.00021999,2]
[319454582,1710781859201,-500.0,0.00021999,2]
[319454583,1710781859210,-500.0,0.00021999,2]
[319454584,1710781859220,-651.91,0.00021999,2]
[319454585,1710781859230,-500.0,0.00021999,2]
[319454586,1710781859239,-500.0,0.00021999,2]
[319454587,1710781859249,-500.0,0.00021999,2]
[319454588,1710781859259,-500.0,0.00021999,2]
[319454589,1710781859268,-500.0,0.00021999,2]
[319454590,1710781859279,-500.0,0.00021999,2]
[319454591,1710781859288,-500.0,0.00021999,2]
[319454592,1710781859298,-500.0,0.00021999,2]
[319454593,1710781859308,-500.0,0.00021999,2]
[319454594,1710781859318,-500.0,0.00021999,2]
[319454595,1710781859328,-500.0,0.00021999,2]
[319454596,1710781859337,-500.0,0.00021999,2]
[319454597,1710781859346,-500.0,0.00021999,2]
[319454598,1710781859362,-500.0,0.00021999,2]
[319454599,1710781859374,-500.0,0.00021999,2]
[319454600,1710781859383,-502.80033736,0.00021999,2]
[319454601,1710781859393,-616.7265313,0.00021999,2]
[319454602,1710781859403,-500.0,0.00021999,2]
[319454603,1710781859485,-984.34,0.00021999,2]
[319454604,1710781859495,-500.0,0.00021999,2]
[319454605,1710781859505,-500.0,0.00021999,2]
[319454606,1710781859515,-540.17,0.00021999,2]
[319454607,1710781859524,-570.05,0.00021999,2]
[319454608,1710781859535,-500.0,0.00021999,2]
[319454609,1710781859544,-668.99,0.00021999,2]
[319454610,1710781859554,-1213.71,0.00021999,2]
[319454611,1710781859563,-500.0,0.00021999,2]
[319454612,1710781859573,-15220.56610821,0.00022,4]
[319454613,1710781859582,-438265.460727,0.00022,2]
[319454614,1710781859592,-2984570.38342926,0.00022,2]
[319454615,1710781859606,-20000.0,0.00022,2]
[319454616,1710781859615,-779.74941329,0.00022,2]
[319454617,1710781859625,-872.49374595,0.00022,4]
[319454618,1710781859634,-616.71467269,0.00022,2]
[319454619,1710781859644,-10245.75,0.00022,2]
[319454620,1710781859654,-155.0,0.00022,2]
[319454621,1710781859663,-321.6642452,0.00022,2]
[319454622,1710781859672,-1029.50869994,0.00022,2]
[319454623,1710781859681,-336730.13825789,0.00022,2]
[319454624,1710781860315,-2469.71724998,0.00022,2]
[319454625,1710781860328,-3484.62364143,0.00022,2]
[319454626,1710781860342,-334.445,0.00022,2]
[319454627,1710781860358,-2231.9460852,0.00022,2]
[319454628,1710781860372,-3617.71806602,0.00022,2]
[319454629,1710781860393,-281.144,0.00022,2]
[319454630,1710781860405,-398.98460776,0.00022,2]
[319454631,1710781860418,-400.53477,0.00022,2]
[319454632,1710781860431,-13685.88733038,0.00022,2]
[319454633,1710781860455,-724.97433625,0.00022,2]
[319454634,1710781860475,-1059.0689981,0.00022,2]
[319454635,1710781860494,-41702.92322083,0.00022,2]
[319454636,1710781860511,-212028.33993298,0.00022,2]
[319454637,1710781860521,-14705.04,0.00022,2]
[319454638,1710781860530,-199.19393485,0.00022,2]
[319454639,1710781860539,-500.0,0.00022,2]
[319454640,1710781860550,-151.0,0.00022,2]
[319454641,1710781860561,-151.0,0.00022,7]
[319454642,1710781860572,-231.436934,0.00022,7]
[319454643,1710781860581,-151.0,0.00022,7]
[319454644,1710781860592,-151.0,0.00022,7]
[319454645,1710781860605,-151.0,0.00022,7]
[319454646,1710781860617,-151.0,0.00022,7]
[319454647,1710781860628,-151.0,0.00022,7]
[319454648,1710781860639,-151.0,0.00022,7]
[319454649,1710781860652,-151.0,0.00022,7]
[319454650,1710781860664,-151.0,0.00022,7]
[319454651,1710781860674,-152.050937,0.00022,7]
[319454652,1710781860684,-153.082472,0.00022,7]
[319454653,1710781860694,-155.106396,0.00022,7]
[319454654,1710781860705,-152.700939,0.00022,7]
[319454655,1710781860716,-151.0,0.00022,7]
[319454656,1710781860727,-154.342484,0.00022,7]
[319454657,1710781860738,-154.408088,0.00022,7]
[319454658,1710781860748,-154.626842,0.00022,7]
[319454659,1710781860758,-1080.41647,0.00022,7]
[319454660,1710781860767,-151.0,0.00022,7]
[319454661,1710781860778,-1080.41647,0.00022,7]
[319454662,1710781860789,-890.828924,0.00022,7]
[319454663,1710781860800,-890.828924,0.00022,7]
[319454664,1710781860811,-151.0,0.00022,7]
[319454665,1710781860821,-151.0,0.00022,5]
[319454666,1710781860832,-151.0,0.00022,7]
[319454667,1710781860842,-151.0,0.00022,7]
[319454668,1710781860856,-151.0,0.00022,7]
[319454669,1710781860867,-151.0,0.00022,7]
[319454670,1710781860877,-151.0,0.00022,7]
[319454671,1710781860888,-151.899164,0.00022,7]
[319454672,1710781860898,-151.0,0.00022,7]
[319454673,1710781860909,-151.0,0.00022,7]
[319454674,1710781860919,-151.0,0.00022,7]
[319454675,1710781860929,-151.0,0.00022,7]
[319454676,1710781860940,-151.0,0.00022,7]
[319454677,1710781860951,-213.261305,0.00022,7]
[319454678,1710781860961,-213.261305,0.00022,7]
[319454679,1710781860972,-151.0,0.00022,7]
[319454680,1710781860982,-153.763567,0.00022,7]
[319454681,1710781860993,-151.0,0.00022,7]
[319454682,1710781861004,-1022.598238,0.00022,7]
[319454683,1710781861014,-151.0,0.00022,7]
[319454684,1710781861025,-1022.598238,0.00022,7]
[319454685,1710781861036,-155.998229,0.00022,7]
[319454686,1710781861046,-151.0,0.00022,7]
[319454687,1710781861057,-151.0,0.00022,7]
[319454688,1710781861068,-155.465444,0.00022,7]
[319454689,1710781861080,-151.0,0.00022,7]
[319454690,1710781861091,-152.285061,0.00022,7]
[319454691,1710781861103,-151.0,0.00022,7]
[319454692,1710781861114,-151.0,0.00022,7]
[319454693,1710781861125,-151.0,0.00022,7]
[319454694,1710781861136,-239.487316,0.00022,7]
[319454695,1710781861147,-307.50921,0.00022,7]
[319454696,1710781861157,-307.50921,0.00022,7]
[319454697,1710781861168,-151.0,0.00022,7]
[319454698,1710781861179,-151.824122,0.00022,7]
[319454699,1710781861190,-151.0,0.00022,7]
[319454700,1710781861201,-151.0,0.00022,7]
[319454701,1710781861211,-246.638145,0.00022,7]
[319454702,1710781861221,-1749.429933,0.00022,7]
[319454703,1710781861232,-1749.429933,0.00022,7]
[319454704,1710781861242,-203.690358,0.00022,7]
[319454705,1710781861253,-151.0,0.00022,7]
[319454706,1710781861262,-203.690358,0.00022,7]
[319454707,1710781861274,-151.0,0.00022,7]
[319454708,1710781861285,-598.269786,0.00022,7]
[319454709,1710781861294,-598.269786,0.00022,7]
[319454710,1710781861306,-151.0,0.00022,7]
[319454711,1710781861316,-151.0,0.00022,7]
[319454712,1710781861327,-151.0,0.00022,7]
[319454713,1710781861339,-783.040403,0.00022,7]
[319454714,1710781861352,-151.0,0.00022,7]
[319454715,1710781861365,-783.040403,0.00022,7]
[319454716,1710781861378,-1082.47,0.00022009,2]
[319454717,1710781861390,-2653.3,0.00022009,2]
[319454718,1710781861403,-150.0,0.0002201,4]
[319454719,1710781861414,-150.0,0.0002201,4]
[319454720,1710781861425,-150.0,0.0002201,4]
[319454721,1710781861435,-150.2222661,0.0002201,4]
[319454722,1710781861446,-152.01868826,0.0002201,4]
[319454723,1710781861456,-150.0,0.0002201,4]
[319454724,1710781861467,-378.10947585,0.0002201,30]
[319454725,1710781861478,-150.0,0.00022174,4]
[319454726,1710781861488,-500.0,0.00022191,2]
[319454727,1710781861497,-1343.22,0.00022191,2]
[319454728,1710781861509,-500.0,0.00022191,2]
[319454729,1710781861519,-2005.2,0.00022191,2]
[319454730,1710781861530,-500.0,0.00022191,2]
[319454731,1710781861542,-500.0,0.00022191,2]
[319454732,1710781861553,-500.0,0.00022191,2]
[319454733,1710781861564,-2489.15,0.00022191,2]
[319454734,1710781861575,-1156.73,0.00022191,2]
[319454735,1710781861585,-500.0,0.00022191,2]
[319454736,1710781861603,-500.0,0.00022191,2]
[319454737,1710781861613,-500.0,0.00022191,2]
[319454738,1710781861622,-500.0,0.00022191,2]
[319454739,1710781861632,-587.77,0.00022191,2]
[319454740,1710781861643,-500.0,0.00022191,2]
[319454741,1710781861653,-2245.28,0.00022191,2]
[319454742,1710781861665,-1244.07,0.00022191,2]
[319454743,1710781861676,-640.5,0.00022191,2]
[319454744,1710781861687,-500.0,0.00022191,2]
[319454745,1710781861698,-208.45031016,0.00022191,2]
[319454746,1710781861708,-1105.98,0.00022191,2]
[319454747,1710781861720,-2306.37,0.00022191,2]
[319454748,1710781861730,-500.0,0.00022191,2]
[319454749,1710781861740,-535.85,0.00022191,2]
[319454750,1710781861751,-1754.36,0.00022191,2]
[319454751,1710781861762,-500.0,0.00022191,2]
[319454752,1710781861773,-500.0,0.00022191,2]
[319454753,1710781861784,-500.0,0.00022191,2]
[319454754,1710781861794,-508.41,0.00022191,2]
[319454755,1710781861805,-500.0,0.00022191,2]
[319454756,1710781861816,-500.0,0.00022191,2]
[319454757,1710781861826,-500.0,0.00022191,2]
[319454758,1710781861840,-500.0,0.00022191,2]
[319454759,1710781861854,-500.0,0.00022191,2]
[319454760,1710781861867,-500.0,0.00022191,2]
[319454761,1710781861879,-500.0,0.00022191,2]
[319454762,1710781861890,-1013.64,0.00022191,2]
[319454763,1710781861901,-500.0,0.00022191,2]
[319454764,1710781861911,-500.0,0.00022191,2]
[319454765,1710781861922,-500.0,0.00022191,2]
[319454766,1710781861934,-1204.69,0.00022191,2]
[319454767,1710781861947,-500.0,0.00022191,2]
[319454768,1710781861958,-1005.03,0.00022191,2]
[319454769,1710781861970,-500.0,0.00022191,2]
[319454770,1710781861981,-2366.66,0.00022191,2]
[319454771,1710781861992,-500.0,0.00022191,2]
[319454772,1710781862003,-1546.08,0.00022191,2]
[319454773,1710781862014,-650.87,0.00022191,2]
[319454774,1710781862024,-500.0,0.00022191,2]
[319454775,1710781862035,-634.6469518,0.00022191,2]
[319454776,1710781862046,-520.91,0.00022191,2]
[319454777,1710781862058,-3507.41,0.00022191,2]
[319454778,1710781862069,-1142.91,0.00022191,2]
[319454779,1710781862081,-674.91,0.00022191,2]
[319454780,1710781862092,-500.96315204,0.00022191,2]
[319454781,1710781862105,-500.0,0.00022191,2]
[319454782,1710781862117,-500.0,0.00022191,2]
[319454783,1710781862128,-736.15,0.00022191,2]
[319454784,1710781862138,-891.78,0.00022191,2]
[319454785,1710781862150,-3040.48,0.00022191,2]
[319454786,1710781862160,-500.0,0.00022191,2]
[319454787,1710781862171,-500.0,0.00022191,2]
[319454788,1710781862182,-553.52632458,0.00022191,2]
[319454789,1710781862192,-500.0,0.00022191,2]
[319454790,1710781862202,-572.95,0.00022191,2]
[319454791,1710781862213,-500.0,0.00022191,2]
[319454792,1710781862467,-500.0,0.00022191,2]
[319454793,1710781862478,-500.0,0.00022191,2]
[319454794,1710781862487,-579.0,0.00022191,2]
[319454795,1710781862496,-500.0,0.00022191,2]
[319454796,1710781862505,-500.0,0.00022191,2]
[319454797,1710781862515,-637.7,0.00022191,2]
[319454798,1710781862523,-501.6009714,0.00022191,2]
[319454799,1710781862533,-500.0,0.00022191,2]
[319454800,1710781862543,-500.0,0.00022191,2]
[319454801,1710781862552,-4103.63,0.00022191,2]
[319454802,1710781862561,-500.0,0.00022191,2]
[319454803,1710781862571,-649.18,0.00022191,2]
[319454804,1710781862580,-708.05,0.00022191,2]
[319454805,1710781862591,-500.0,0.00022191,2]
[319454806,1710781862603,-500.0,0.00022191,2]
[319454807,1710781862612,-2148.54,0.00022191,2]
[319454808,1710781862621,-500.0,0.00022191,2]
[319454809,1710781862631,-1938.81,0.00022191,2]
[319454810,1710781862641,-3044.54,0.00022191,2]
[319454811,1710781862650,-500.0,0.00022191,2]
[319454812,1710781862659,-500.0,0.00022191,2]
[319454813,1710781862668,-1267.76,0.00022191,2]
[319454814,1710781862677,-1058.27,0.00022191,2]
[319454815,1710781862687,-500.0,0.00022191,2]
[319454816,1710781862696,-820.05,0.00022191,2]
[319454817,1710781862705,-791.2,0.00022191,2]
[319454818,1710781862714,-500.0,0.00022191,2]
[319454819,1710781862723,-1247.83,0.00022191,2]
[319454820,1710781862733,-812.26,0.00022191,2]
[319454821,1710781862742,-500.0,0.00022191,2]
[319454822,1710781862751,-561.91,0.00022191,2]
[319454823,1710781862761,-500.0,0.00022191,2]
[319454824,1710781862770,-2911.99,0.00022191,2]
[319454825,1710781862779,-870.99,0.00022191,2]
[319454826,1710781862788,-500.0,0.00022191,2]
[319454827,1710781862797,-500.0,0.00022191,2]
[319454828,1710781862806,-2097.61,0.00022191,2]
[319454829,1710781862816,-500.0,0.00022191,2]
[319454830,1710781862825,-646.65,0.00022191,2]
[319454831,1710781862835,-957.38,0.00022191,2]
[319454832,1710781862844,-500.0,0.00022191,2]
[319454833,1710781862857,-1035.35,0.00022191,2]
[319454834,1710781862867,-612.71,0.00022191,2]
[319454835,1710781862877,-500.0,0.00022191,2]
[319454836,1710781862887,-1285.89,0.00022191,2]
[319454837,1710781862897,-500.0,0.00022191,2]
[319454838,1710781862906,-1574.2,0.00022191,2]
[319454839,1710781862916,-500.0,0.00022191,2]
[319454840,1710781862925,-877.85,0.00022191,2]
[319454841,1710781862935,-1756.88,0.00022191,2]
[319454842,1710781862945,-500.0,0.00022191,2]
[319454843,1710781862954,-500.0,0.00022191,2]
[319454844,1710781862964,-1204.81,0.00022191,2]
[319454845,1710781862974,-746.41,0.00022191,2]
[319454846,1710781862984,-500.0,0.00022191,2]
[319454847,1710781862993,-978.16,0.00022191,2]
[319454848,1710781863003,-500.0,0.00022191,2]
[319454849,1710781863013,-500.0,0.00022191,2]
[319454850,1710781863022,-500.0,0.00022191,2]
[319454851,1710781863031,-500.0,0.00022191,2]
[319454852,1710781863040,-744.34,0.00022191,2]
[319454853,1710781863049,-1583.19,0.00022191,2]
[319454854,1710781863058,-591.84,0.00022191,2]
[319454855,1710781863067,-1231.81,0.00022191,2]
[319454856,1710781863076,-500.0,0.00022191,2]
[319454857,1710781863085,-500.0,0.00022191,2]
[319454858,1710781863094,-828.31,0.00022191,2]
[319454859,1710781863109,-2127.94,0.00022191,2]
[319454860,1710781863118,-770.55,0.00022191,2]
[319454861,1710781863127,-582.72,0.00022191,2]
[319454862,1710781863137,-500.0,0.00022191,2]
[319454863,1710781863146,-993.99,0.00022191,2]
[319454864,1710781863156,-500.0,0.00022191,2]
[319454865,1710781863166,-2450.81,0.00022191,2]
[319454866,1710781863175,-516.3,0.00022191,2]
[319454867,1710781863185,-500.0,0.00022191,2]
[319454868,1710781863194,-500.0,0.00022191,2]
[319454869,1710781863203,-500.0,0.00022191,2]
[319454870,1710781863213,-913.52,0.00022191,2]
[319454871,1710781863222,-248.14226951,0.00022191,2]
[319454872,1710781863231,-500.0,0.00022191,2]
[319454873,1710781863241,-740.09,0.00022191,2]
[319454874,1710781863250,-500.0,0.00022191,2]
[319454875,1710781863259,-500.0,0.00022191,2]
[319454876,1710781863269,-2612.72,0.00022191,2]
[319454877,1710781863278,-500.0,0.00022191,2]
[319454878,1710781863288,-500.0,0.00022191,2]
[319454879,1710781863298,-502.25884514,0.00022191,2]
[319454880,1710781863308,-500.0,0.00022191,2]
[319454881,1710781863317,-500.0,0.00022191,2]
[319454882,1710781863327,-500.0,0.00022191,2]
[319454883,1710781863339,-500.0,0.00022191,2]
[319454884,1710781863348,-500.0,0.00022191,2]
[319454885,1710781863362,-1240.29,0.00022191,2]
[319454886,1710781863378,-1758.17,0.00022191,2]
[319454887,1710781863392,-500.0,0.00022191,2]
[319454888,1710781863401,-500.0,0.00022191,2]
[319454889,1710781863411,-500.40577918,0.00022191,2]
[319454890,1710781863420,-500.0,0.00022191,2]
[319454891,1710781863430,-500.0,0.00022191,2]
[319454892,1710781863439,-500.0,0.00022191,2]
[319454893,1710781863451,-1180.93,0.00022191,2]
[319454894,1710781863461,-500.0,0.00022191,2]
[319454895,1710781863471,-500.0,0.00022191,2]
[319454896,1710781863484,-1299.93,0.00022191,2]
[319454897,1710781863494,-500.0,0.00022191,2]
[319454898,1710781863504,-500.0,0.00022191,2]
[319454899,1710781863513,-1150.69,0.00022191,2]
[319454900,1710781863523,-500.0,0.00022191,2]
[319454901,1710781863533,-500.0,0.00022191,2]
[319454902,1710781863543,-493.50731914,0.00022191,2]
[319454903,1710781863552,-4315.19,0.00022191,2]
[319454904,1710781863561,-1730.25,0.00022191,2]
[319454905,1710781863570,-500.0,0.00022191,2]
[319454906,1710781863580,-500.0,0.00022191,2]
[319454907,1710781863589,-500.0,0.00022191,2]
[319454908,1710781863598,-500.0,0.00022191,2]
[319454909,1710781863613,-500.0,0.00022191,2]
[319454910,1710781863623,-500.0,0.00022191,2]
[319454911,1710781863632,-500.0,0.00022191,2]
[319454912,1710781863642,-500.0,0.00022191,2]
[319454913,1710781863651,-500.0,0.00022191,2]
[319454914,1710781863659,-500.0,0.00022191,2]
[319454915,1710781863668,-500.0,0.00022191,2]
[319454916,1710781863677,-856.75,0.00022191,2]
[319454917,1710781863687,-628.03,0.00022191,2]
[319454918,1710781863696,-500.0,0.00022191,2]
[319454919,1710781863705,-500.0,0.00022191,2]
[319454920,1710781863715,-500.0,0.00022191,2]
[319454921,1710781863724,-500.0,0.00022191,2]
[319454922,1710781863733,-500.0,0.00022191,2]
[319454923,1710781863742,-500.0,0.00022191,2]
[319454924,1710781863751,-501.42184264,0.00022191,2]
[319454925,1710781863760,-2462.91,0.00022191,2]
[319454926,1710781863769,-500.0,0.00022191,2]
[319454927,1710781863778,-500.0,0.00022191,2]
[319454928,1710781863787,-198.18561201,0.00022191,2]
[319454929,1710781863796,-532.99,0.00022191,2]
[319454930,1710781863805,-500.0,0.00022191,2]
[319454931,1710781863814,-500.00572672,0.00022191,2]
[319454932,1710781863823,-500.0,0.00022191,2]
[319454933,1710781863832,-500.0,0.00022191,2]
[319454934,1710781863841,-500.0,0.00022191,2]
[319454935,1710781863853,-501.08475332,0.00022191,2]
[319454936,1710781863861,-500.0,0.00022191,2]
[319454937,1710781863870,-723.75,0.00022191,2]
[319454938,1710781863879,-500.0,0.00022191,2]
[319454939,1710781863888,-500.0,0.00022191,2]
[319454940,1710781863897,-500.0,0.00022191,2]
[319454941,1710781863906,-500.0,0.00022191,2]
[319454942,1710781863914,-500.0,0.00022191,2]
[319454943,1710781863923,-473.53384201,0.00022191,2]
[319454944,1710781863934,-500.0,0.00022191,2]
[319454945,1710781863943,-500.0,0.00022191,2]
[319454946,1710781863952,-500.0,0.00022191,2]
[319454947,1710781863962,-500.0,0.00022191,2]
[319454948,1710781863971,-500.0,0.00022191,2]
[319454949,1710781863980,-500.0,0.00022191,2]
[319454950,1710781863989,-500.0,0.00022191,2]
[319454951,1710781863998,-500.0,0.00022191,2]
[319454952,1710781864007,-1028.77,0.00022191,2]
[319454953,1710781864017,-500.0,0.00022191,2]
[319454954,1710781864025,-1120.8,0.00022191,2]
[319454955,1710781864034,-501.60846592,0.00022191,2]
[319454956,1710781864043,-2000.0,0.00022191,2]
[319454957,1710781864052,-500.0,0.00022191,2]
[319454958,1710781864062,-991.38,0.00022191,2]
[319454959,1710781864071,-500.0,0.00022191,2]
[319454960,1710781864080,-500.0,0.00022191,2]
[319454961,1710781864090,-500.98740688,0.00022191,2]
[319454962,1710781864105,-500.0,0.00022191,2]
[319454963,1710781864114,-500.0,0.00022191,2]
[319454964,1710781864124,-4717.53,0.00022191,2]
[319454965,1710781864133,-500.0,0.00022191,2]
[319454966,1710781864142,-500.0,0.00022191,2]
[319454967,1710781864151,-619.71,0.00022191,2]
[319454968,1710781864161,-500.0,0.00022191,2]
[319454969,1710781864170,-500.0,0.00022191,2]
[319454970,1710781864179,-576.56,0.00022191,2]
[319454971,1710781864188,-500.0,0.00022191,2]
[319454972,1710781864198,-500.0,0.00022191,2]
[319454973,1710781864207,-500.0,0.00022191,2]
[319454974,1710781864216,-500.0,0.00022191,2]
[319454975,1710781864225,-503.55374217,0.00022191,2]
[319454976,1710781864235,-500.0,0.00022191,2]
[319454977,1710781864244,-500.0,0.00022191,2]
[319454978,1710781864253,-500.0,0.00022191,2]
[319454979,1710781864263,-500.0,0.00022191,2]
[319454980,1710781864272,-500.0,0.00022191,2]
[319454981,1710781864281,-500.0,0.00022191,2]
[319454982,1710781864290,-500.0,0.00022191,2]
[319454983,1710781864299,-500.0,0.00022191,2]
[319454984,1710781864309,-501.44959738,0.00022191,2]
[319454985,1710781864318,-515.79,0.00022191,2]
[319454986,1710781864328,-500.71014144,0.00022191,2]
[319454987,1710781864339,-500.0,0.00022191,2]
[319454988,1710781864349,-524.73,0.00022191,2]
[319454989,1710781864361,-522.44,0.00022191,2]
[319454990,1710781864373,-500.0,0.00022191,2]
[319454991,1710781864382,-500.0,0.00022191,2]
[319454992,1710781864391,-543.14790035,0.00022191,2]
[319454993,1710781864401,-2013.48,0.00022191,2]
[319454994,1710781864411,-500.0,0.00022191,2]
[319454995,1710781864420,-500.0,0.00022191,2]
[319454996,1710781864429,-500.0,0.00022191,2]
[319454997,1710781864438,-500.0,0.00022191,2]
[319454998,1710781864448,-315.38401363,0.00022191,2]
[319454999,1710781864458,-637.58,0.00022191,2]
[319455000,1710781864467,-521.87022663,0.00022191,2]
[319455001,1710781864477,-500.0,0.00022191,2]
[319455002,1710781864486,-500.0,0.00022191,2]
[319455003,1710781864496,-836.07,0.00022191,2]
[319455004,1710781864505,-258.78551789,0.00022191,2]
[319455005,1710781864515,-500.0,0.00022191,2]
[319455006,1710781864524,-500.0,0.00022191,2]
[319455007,1710781864534,-500.0,0.00022191,2]
[319455008,1710781864543,-650.87,0.00022191,2]
[319455009,1710781864552,-502.11083165,0.00022191,2]
[319455010,1710781864562,-2813.23,0.00022191,2]
[319455011,1710781864571,-500.0,0.00022191,2]
[319455012,1710781864580,-512.4,0.00022191,2]
[319455013,1710781864589,-500.0,0.00022191,2]
[319455014,1710781864598,-293.53781345,0.00022191,2]
[319455015,1710781864609,-572.51002725,0.00022191,2]
[319455016,1710781864617,-501.87805068,0.00022191,2]
[319455017,1710781864627,-363.08,0.00022191,2]
[319455018,1710781864636,-500.0,0.00022191,2]
[319455019,1710781864645,-500.0,0.00022191,2]
[319455020,1710781864654,-612.97,0.00022191,2]
[319455021,1710781864663,-500.0,0.00022191,2]
[319455022,1710781864673,-500.0,0.00022191,2]
[319455023,1710781864682,-899.13,0.00022191,2]
[319455024,1710781864691,-500.0,0.00022191,2]
[319455025,1710781864700,-500.0,0.00022191,2]
[319455026,1710781864710,-500.0,0.00022191,2]
[319455027,1710781864719,-4947.26,0.00022191,2]
[319455028,1710781864728,-500.0,0.00022191,2]
[319455029,1710781864737,-1857.83,0.00022191,2]
[319455030,1710781864746,-500.0,0.00022191,2]
[319455031,1710781864755,-500.0,0.00022191,2]
[319455032,1710781864765,-500.0,0.00022191,2]